bitfinex-derivatives/quotes_BTCF0:USTF0_20250501
["timestamp","ask_amount","ask_price","bid_price","bid_amount"]
[1746118860763,0.25763594,96953.0,96952.0,0.04591068]
[1746118861159,0.25763594,96953.0,96952.0,0.25212608]
[1746118861552,0.25763594,96953.0,96952.0,0.04591068]
[1746118861760,0.001,96953.0,96952.0,0.55527007]
[1746118861959,0.0313,96966.0,96960.0,0.2577392]
[1746118862159,0.2577421,96963.0,96962.0,0.2061941]
[1746118862356,0.30830291,96963.0,96962.0,0.2682941]
[1746118862661,0.30830291,96963.0,96962.0,0.2991941]
[1746118862867,0.25675491,96963.0,96962.0,0.2991941]
[1746118863670,0.30830291,96963.0,96962.0,0.2991941]
[1746118863873,0.24730291,96963.0,96962.0,0.2991941]
[1746118865066,0.24830291,96963.0,96962.0,0.3011941]
[1746118865366,0.24830291,96963.0,96962.0,0.3021941]
[1746118867662,0.2061854,96969.0,96968.0,0.2061738]
[1746118867867,0.35145,96987.0,96968.0,0.3061769]
[1746118868165,0.2061601,96978.0,96977.0,0.3608]
[1746118868468,0.1728901,96978.0,96977.0,0.3608]
[1746118869662,0.1748901,96978.0,96977.0,0.3618]
[1746118869869,0.002,96978.0,96977.0,0.3618]
[1746118870070,0.2081601,96978.0,96977.0,0.3618]
[1746118870370,0.2101601,96978.0,96977.0,0.3618]
[1746118870977,0.2091601,96978.0,96977.0,0.3618]
[1746118871364,0.2081601,96978.0,96977.0,0.3618]
[1746118871564,0.1164401,96978.0,96977.0,0.001]
[1746118871764,0.2061728,96972.0,96971.0,0.0319]
[1746118872577,0.1958728,96972.0,96971.0,0.0626]
[1746118873275,0.0333,96973.0,96972.0,0.2061728]
[1746118873574,0.3608,97010.0,96995.0,0.206124]
[1746118873779,0.0317,97009.0,97004.0,0.2061048]
[1746118873976,0.3608,97021.0,97004.0,0.3608]
[1746118874179,0.0525147,97026.0,97013.0,0.4608]
[1746118874372,0.001,97026.0,97014.0,0.0944]
[1746118874568,0.0515151,97025.0,97014.0,0.0944]
[1746118874769,0.2060719,97020.0,97019.0,0.2060684]
[1746118874976,0.2060719,97020.0,97019.0,0.27779562]
[1746118876181,0.2060719,97020.0,97019.0,0.27780022]
[1746118876477,0.2060719,97020.0,97019.0,0.27880022]
[1746118877980,0.2060719,97020.0,97019.0,0.07272722]
[1746118878177,0.2060719,97020.0,97019.0,0.27880022]
[1746118878382,0.2070719,97020.0,97019.0,0.63960022]
[1746118880479,0.2070719,97020.0,97019.0,1.00040022]
[1746118880982,0.001,97020.0,97019.0,1.00040022]
[1746118881386,0.2070708,97020.0,97019.0,1.00040022]
[1746118881583,0.0515119,97031.0,97023.0,0.2575758]
[1746118881775,0.206063,97024.0,97023.0,0.2575758]
[1746118881976,0.103113,97024.0,97023.0,0.2575758]
[1746118882985,0.10471744,97026.0,97023.0,0.2575758]
[1746118883185,0.206063,97024.0,97023.0,0.2575758]
[1746118883975,0.207063,97024.0,97023.0,0.2575758]
[1746118884674,0.208063,97024.0,97023.0,0.2575758]
[1746118884876,0.208063,97024.0,97023.0,0.2060602]
[1746118885478,0.105103,97024.0,97023.0,0.2060602]
[1746118887187,0.002,97024.0,97023.0,0.2060602]
[1746118887783,0.208063,97024.0,97023.0,0.2060602]
[1746118889591,0.2575879,97022.0,97021.0,0.2060675]
[1746118890090,0.2882879,97022.0,97021.0,0.2060675]
[1746118890281,0.2367708,97022.0,97021.0,0.2060675]
[1746118890488,0.2060666,97022.0,97021.0,0.2575842]
[1746118890791,0.2070666,97022.0,97021.0,0.3606176]
[1746118891088,0.2080666,97022.0,97021.0,0.3606176]
[1746118893490,0.2080666,97022.0,97021.0,0.3091009]
[1746118894092,0.2080666,97022.0,97021.0,0.4091009]
[1746118894591,0.2080666,97022.0,97021.0,0.3091009]
[1746118894887,0.2080666,97022.0,97021.0,0.5121689]
[1746118895091,0.2060619,97025.0,97024.0,0.2060623]
[1746118895586,0.2060619,97025.0,97024.0,0.4091303]
[1746118895984,0.2060619,97025.0,97024.0,0.4736503]
[1746118896185,0.2373619,97025.0,97024.0,0.3060623]
[1746118896385,0.2373619,97025.0,97024.0,0.3705823]
[1746118896692,0.2383619,97025.0,97024.0,0.3705823]
[1746118897394,0.2393619,97025.0,97024.0,0.3705823]
[1746118898689,0.002,97025.0,97024.0,0.3705823]
[1746118899389,0.2080602,97025.0,97024.0,0.3705823]
[1746118900202,0.002,97025.0,97024.0,0.3705823]
[1746118900499,0.2080602,97025.0,97024.0,0.3705823]
[1746118900794,0.002,97025.0,97024.0,0.3705823]
[1746118900995,0.2080602,97025.0,97024.0,0.3705823]
[1746118901198,0.002,97025.0,97024.0,0.3705823]
[1746118902088,0.2080602,97025.0,97024.0,0.3705823]
[1746118902395,0.1918002,97025.0,97024.0,0.3060623]
[1746118902587,0.1918002,97025.0,97024.0,0.3705823]
[1746118903198,0.05320294,97026.0,97025.0,0.2060602]
[1746118903499,0.25926104,97026.0,97025.0,0.2392602]
[1746118904397,0.2090581,97026.0,97025.0,0.2392602]
[1746118904697,0.1223681,97026.0,97025.0,0.2392602]
[1746118904894,0.002,97026.0,97025.0,0.2392602]
[1746118905898,0.2080581,97026.0,97025.0,0.2392602]
[1746118906495,0.2705581,97026.0,97025.0,0.2392602]
[1746118910695,0.2705581,97026.0,97025.0,0.0332]
[1746118913403,0.2705581,97026.0,97025.0,0.2392602]
[1746118915004,0.2705581,97026.0,97025.0,0.0332]
[1746118915707,0.2705581,97026.0,97025.0,0.2392602]
[1746118916606,0.2705581,97026.0,97025.0,0.0332]
[1746118917007,0.3090955,97025.0,97022.0,0.1170764]
[1746118917204,0.25758,97025.0,97024.0,0.2060616]
[1746118917508,0.25758,97025.0,97024.0,0.3060616]
[1746118917706,0.2060645,97025.0,97024.0,0.3060616]
[1746118918001,0.2575589,97037.0,97036.0,0.2060369]
[1746118918207,0.3090701,97037.0,97036.0,0.2060369]
[1746118919301,0.36486842,97037.0,97036.0,0.2070369]
[1746118919511,0.36486842,97037.0,97036.0,0.001]
[1746118919710,0.36486842,97037.0,97036.0,0.2070369]
[1746118919901,0.36486842,97037.0,97036.0,0.001]
[1746118919902,0.36786842,97037.0,97036.0,0.001]
[1746118924418,0.72866842,97037.0,97036.0,0.001]
[1746118927713,0.36786842,97037.0,97036.0,0.001]
[1746118931812,0.26484772,97037.0,97036.0,0.3026369]
[1746118932012,0.26484772,97037.0,97036.0,0.4026369]
[1746118932522,0.007,97037.0,97036.0,0.4026369]
[1746118932721,0.2060012,97053.0,97036.0,0.399656]
[1746118933021,0.1545514,97053.0,97052.0,0.5668008]
[1746118933216,0.20648328,97053.0,97052.0,0.3608]
[1746118933916,0.05193188,97053.0,97052.0,0.6307029]
[1746118934116,0.2060008,97053.0,97052.0,0.6307029]
[1746118934421,0.25876157,97053.0,97052.0,0.4247]
[1746118934623,0.25876157,97053.0,97052.0,0.4257]
[1746118934624,0.24045157,97053.0,97052.0,0.4257]
[1746118935821,0.24045157,97053.0,97052.0,0.6317029]
[1746118936031,0.24245157,97053.0,97052.0,0.6317029]
[1746118936519,0.23745157,97053.0,97052.0,0.6307029]
[1746118936823,0.24045157,97053.0,97052.0,0.6307029]
[1746118937225,0.15985157,97053.0,97052.0,0.6307029]
[1746118939218,0.26276157,97053.0,97052.0,0.6307029]
[1746118940325,0.25556157,97053.0,97052.0,0.6307029]
[1746118941232,0.19606157,97053.0,97052.0,0.6307029]
[1746118942827,0.24686117,97053.0,97052.0,0.6307029]
[1746118946423,0.24686117,97053.0,97052.0,0.4247]
[1746118946622,0.24686117,97053.0,97052.0,0.6307029]
[1746118947527,0.24686117,97053.0,97052.0,0.3608]
[1746118947727,0.28046117,97053.0,97052.0,0.3608]
[1746118948231,0.28046117,97053.0,97052.0,0.6351029]
[1746118949220,0.0507996,97053.0,97052.0,0.6351029]
[1746118949422,0.051493,97067.0,97053.0,0.0514997]
[1746118949733,0.3089891,97061.0,97060.0,0.2059838]
[1746118950033,0.3089891,97061.0,97060.0,0.5667838]
[1746118950423,0.0336,97074.0,97069.0,0.2574485]
[1746118950424,0.2574659,97070.0,97069.0,0.2574485]
[1746118950730,0.2574659,97070.0,97069.0,0.6182485]
[1746118950923,0.2460559,97070.0,97069.0,0.6182485]
[1746118951230,0.20630242,97070.0,97069.0,0.6182485]
[1746118952030,0.20930242,97070.0,97069.0,0.6182485]
[1746118952230,0.20930242,97070.0,97069.0,0.62590086]
[1746118952623,0.26079452,97070.0,97069.0,0.62590086]
[1746118953031,0.26379452,97070.0,97069.0,0.62590086]
[1746118956123,0.21230242,97070.0,97069.0,0.62590086]
[1746118956324,0.0015,97075.0,97073.0,0.2059562]
[1746118956631,0.0015,97075.0,97074.0,0.069]
[1746118957530,0.05176176,97075.0,97074.0,0.2749562]
[1746118957726,0.238438,97084.0,97083.0,0.2059371]
[1746118957926,0.238438,97084.0,97083.0,0.5667371]
[1746118957927,0.135528,97084.0,97083.0,0.5667371]
[1746118966750,0.0514837,97085.0,97083.0,0.5667371]
[1746118966952,0.205938,97084.0,97083.0,0.5667371]
[1746118967647,0.205938,97084.0,97083.0,0.6338171]
[1746118968261,0.25713161,97086.0,97085.0,0.2059329]
[1746118968960,0.22317161,97086.0,97085.0,0.2059329]
[1746118969258,0.2059171,97096.0,97095.0,0.2573859]
[1746118969553,0.2059075,97098.0,97097.0,0.2059074]
[1746118970060,0.25712649,97098.0,97097.0,0.2059074]
[1746118970259,0.15424649,97098.0,97097.0,0.2059074]
[1746118971260,0.15624649,97098.0,97097.0,0.2059074]
[1746118971460,0.15824649,97098.0,97097.0,0.2059074]
[1746118971760,0.19234649,97098.0,97097.0,0.2059074]
[1746118972958,0.15824649,97098.0,97097.0,0.2059074]
[1746118973160,0.26112649,97098.0,97097.0,0.2059074]
[1746118973862,0.05521899,97098.0,97097.0,0.2059074]
[1746118974062,0.26112429,97098.0,97097.0,0.2059074]
[1746118974464,0.25712429,97098.0,97097.0,0.2059074]
[1746118974755,0.26012429,97098.0,97097.0,0.2059074]
[1746118974963,0.2059095,97096.0,97095.0,0.6181861]
[1746118975159,0.2059095,97096.0,97095.0,0.6852661]
[1746118975549,0.2747095,97096.0,97095.0,0.6852661]
[1746118975755,0.2747095,97096.0,97095.0,0.6181861]
[1746118976865,0.2747095,97096.0,97095.0,0.6191861]
[1746118979964,0.1,97100.0,97095.0,0.4466764]
[1746118980266,0.31033,97110.0,97109.0,0.205882]
[1746118980655,0.36090098,97110.0,97109.0,0.205882]
[1746118980877,0.36090098,97110.0,97109.0,0.240682]
[1746118981459,0.31042988,97110.0,97109.0,0.240682]
[1746118981659,0.05307098,97110.0,97109.0,0.240682]
[1746118981859,0.25895088,97110.0,97109.0,0.340682]
[1746118982761,0.25895088,97110.0,97109.0,0.375082]
[1746118983273,0.25795088,97110.0,97109.0,0.375082]
[1746118984074,0.05207098,97110.0,97109.0,0.375082]
[1746118984464,0.25795088,97110.0,97109.0,0.375082]
[1746118987578,0.2073799,97110.0,97109.0,0.375082]
[1746118990077,0.2429799,97110.0,97109.0,0.375082]
[1746118990472,0.2768799,97110.0,97109.0,0.375082]
[1746118991571,0.2768799,97110.0,97109.0,0.442162]
[1746118991773,0.2768799,97110.0,97109.0,0.1348]
[1746118991977,0.2768799,97110.0,97109.0,0.0348]
[1746118991978,0.3120799,97110.0,97109.0,0.0348]
[1746118992678,0.3120799,97110.0,97109.0,0.240682]
[1746118994769,0.3120799,97110.0,97109.0,0.0348]
[1746118995173,0.3120799,97110.0,97109.0,0.240682]
[1746118996185,0.2768799,97110.0,97109.0,0.240682]
[1746118996482,0.2768799,97110.0,97109.0,0.274382]
[1746118996875,0.2768799,97110.0,97109.0,0.240682]
[1746118998284,0.2768799,97110.0,97109.0,0.0348]
[1746118998485,0.2768799,97110.0,97109.0,0.240682]
[1746119000377,0.2768799,97110.0,97109.0,0.274182]
[1746119000869,0.05053132,97111.0,97110.0,0.2058799]
[1746119001075,0.0514675,97115.0,97114.0,0.2058693]
[1746119001377,0.257341,97115.0,97114.0,0.2058693]
[1746119001570,0.323141,97115.0,97114.0,0.2058693]
[1746119001773,0.323141,97115.0,97114.0,0.2730693]
[1746119002178,0.37359348,97115.0,97114.0,0.2730693]
[1746119002676,0.37459348,97115.0,97114.0,0.2730693]
[1746119002985,0.37559348,97115.0,97114.0,0.2730693]
[1746119003886,0.25832598,97115.0,97114.0,0.2730693]
[1746119005487,0.05245248,97115.0,97114.0,0.2730693]
[1746119005891,0.2058496,97125.0,97124.0,0.2573055]
[1746119006188,0.05020709,97125.0,97124.0,0.5666502]
[1746119006488,0.2912902,97134.0,97133.0,0.2058311]
[1746119006689,0.2398329,97134.0,97133.0,0.2058311]
[1746119006888,0.29032286,97134.0,97133.0,0.2058311]
[1746119007089,0.29032286,97134.0,97133.0,0.2749311]
[1746119007279,0.29032286,97134.0,97133.0,0.0691]
[1746119007484,0.29032286,97134.0,97133.0,0.2749311]
[1746119007681,0.29032286,97134.0,97133.0,0.28278309]
[1746119008392,0.29132286,97134.0,97133.0,0.28278309]
[1746119008593,0.29232286,97134.0,97133.0,0.28278309]
[1746119009091,0.25632286,97134.0,97133.0,0.28278309]
[1746119009290,0.25632286,97134.0,97133.0,0.07695199]
[1746119009995,0.29132286,97134.0,97133.0,0.07695199]
[1746119010592,0.29132286,97134.0,97133.0,0.28278309]
[1746119011189,0.08548996,97134.0,97133.0,0.28278309]
[1746119011494,0.05048996,97134.0,97133.0,0.28278309]
[1746119011689,0.205829,97134.0,97133.0,0.28278309]
[1746119012095,0.2058255,97138.0,97137.0,0.2572737]
[1746119012483,0.2058248,97136.0,97135.0,0.0317]
[1746119013097,0.205829,97134.0,97133.0,0.21368179]
[1746119015092,0.205829,97134.0,97133.0,0.24628179]
[1746119015595,0.205829,97134.0,97133.0,0.00785199]
[1746119015902,0.205829,97134.0,97132.0,0.3608]
[1746119015903,0.2058311,97133.0,97132.0,0.3608]
[1746119016097,0.2397311,97133.0,97132.0,0.3608]
[1746119016602,0.2397311,97133.0,97132.0,0.5666332]
[1746119018001,0.2397311,97133.0,97132.0,0.3608]
[1746119018393,0.2397311,97133.0,97132.0,0.5666332]
[1746119018797,0.2397311,97133.0,97132.0,0.57433976]
[1746119019299,0.2734311,97133.0,97132.0,0.57433976]
[1746119019904,0.2734311,97133.0,97132.0,0.21353976]
[1746119022400,0.2058311,97133.0,97132.0,0.21353976]
[1746119026816,0.2058311,97133.0,97132.0,0.00770656]
[1746119027015,0.2058353,97131.0,97130.0,0.3608]
[1746119027610,0.2058353,97131.0,97130.0,0.5666375]
[1746119029615,0.2058353,97131.0,97130.0,0.5676375]
[1746119029813,0.2754353,97131.0,97130.0,0.5676375]
[1746119030813,0.2754353,97131.0,97130.0,0.5751628]
[1746119031921,0.26257826,97131.0,97130.0,0.5751628]
[1746119038120,0.26257826,97131.0,97130.0,0.6102628]
[1746119039522,0.19297826,97131.0,97130.0,0.6102628]
[1746119040026,0.25752271,97134.0,97133.0,0.2058311]
[1746119043026,0.2058332,97132.0,97131.0,0.0356]
[1746119043729,0.2782332,97132.0,97131.0,0.0356]
[1746119044125,0.2782332,97132.0,97131.0,0.0366]
[1746119046335,0.2782332,97132.0,97131.0,0.2424353]
[1746119046931,0.2058332,97132.0,97131.0,0.2424353]
[1746119047124,0.2058332,97132.0,97131.0,0.2775353]
[1746119057744,0.20606301,97134.0,97133.0,0.2058311]
[1746119058334,0.00023221,97134.0,97133.0,0.3781311]
[1746119059242,0.00023221,97134.0,97133.0,0.4430911]
[1746119059639,0.310212,97145.0,97144.0,0.2058078]
[1746119059935,0.310212,97145.0,97144.0,0.5666078]
[1746119060533,0.310212,97145.0,97144.0,0.6390078]
[1746119060733,0.36251629,97145.0,97144.0,0.6390078]
[1746119064443,0.36235683,97145.0,97144.0,0.6390078]
[1746119067946,0.31090483,97145.0,97144.0,0.6390078]
[1746119068242,0.00134054,97145.0,97144.0,0.6390078]
[1746119068446,0.2572287,97157.0,97156.0,0.2057781]
[1746119068641,0.3086753,97157.0,97156.0,0.5665781]
[1746119069148,0.3086753,97157.0,97156.0,0.6397781]
[1746119069550,0.36159203,97157.0,97156.0,0.6397781]
[1746119070049,0.36359203,97157.0,97156.0,0.6397781]
[1746119071055,0.31214543,97157.0,97156.0,0.6397781]
[1746119071249,0.31114543,97157.0,97156.0,0.6397781]
[1746119082769,0.25970023,97157.0,97156.0,0.6397781]
[1746119083860,0.25770023,97157.0,97156.0,0.6397781]
[1746119084159,0.25970023,97157.0,97156.0,0.6397781]
[1746119090964,0.25970023,97157.0,97156.0,0.2789781]
[1746119091162,0.25970023,97157.0,97156.0,0.6397781]
[1746119092067,0.2057972,97149.0,97148.0,0.3608]
[1746119092565,0.2778972,97149.0,97148.0,0.3608]
[1746119092861,0.2778972,97149.0,97148.0,0.5665993]
[1746119093063,0.2778972,97149.0,97148.0,0.3608]
[1746119093763,0.2778972,97149.0,97148.0,0.5665993]
[1746119095564,0.2778972,97149.0,97148.0,0.57426687]
[1746119099463,0.2778972,97149.0,97148.0,0.61276687]
[1746119099660,0.2427972,97149.0,97148.0,0.61276687]
[1746119103365,0.2057972,97149.0,97148.0,0.61276687]
[1746119103961,0.2423972,97149.0,97148.0,0.61276687]
[1746119105569,0.2057972,97149.0,97148.0,0.61276687]
[1746119106964,0.2422972,97149.0,97148.0,0.61276687]
[1746119107368,0.2057972,97149.0,97148.0,0.61276687]
[1746119107876,0.2937385,97154.0,97153.0,0.2057887]
[1746119108169,0.25669783,97157.0,97156.0,0.2057824]
[1746119108768,0.05091673,97157.0,97156.0,0.2057824]
[1746119108956,0.0514443,97159.0,97156.0,0.2057824]
[1746119109161,0.2057803,97157.0,97156.0,0.2410824]
[1746119109570,0.2057909,97152.0,97151.0,0.0364]
[1746119110165,0.2057909,97152.0,97151.0,0.242193]
[1746119110363,0.2769909,97152.0,97151.0,0.242193]
[1746119110571,0.2769909,97152.0,97151.0,0.244193]
[1746119110873,0.2769909,97152.0,97151.0,0.245193]
[1746119111167,0.2769909,97152.0,97151.0,0.208793]
[1746119113968,0.2769909,97152.0,97151.0,0.003]
[1746119114169,0.6377909,97152.0,97151.0,0.003]
[1746119114366,0.0514516,97145.0,97130.0,0.12064987]
[1746119114577,0.2058163,97140.0,97130.0,0.32648617]
[1746119114870,0.2058163,97140.0,97130.0,0.32648717]
[1746119115072,0.2058163,97140.0,97138.0,0.00787681]
[1746119115571,0.2773163,97140.0,97139.0,0.12364987]
[1746119115772,0.2773163,97140.0,97139.0,0.12764987]
[1746119117176,0.2773163,97140.0,97139.0,0.12664987]
[1746119117771,0.2773163,97140.0,97139.0,0.12464987]
[1746119118776,0.2773163,97140.0,97139.0,0.12364987]
[1746119122780,0.2773163,97140.0,97139.0,0.16284987]
[1746119126478,0.2773163,97140.0,97139.0,0.12364987]
[1746119128578,0.2773163,97140.0,97139.0,0.16204987]
[1746119129484,0.2058417,97128.0,97120.0,0.12064987]
[1746119129679,0.2058417,97128.0,97122.0,0.00769137]
[1746119129880,0.2058565,97121.0,97120.0,0.12064987]
[1746119130080,0.2058565,97121.0,97120.0,0.11910551]
[1746119130787,0.2812565,97121.0,97120.0,0.11910551]
[1746119132378,0.2812565,97121.0,97120.0,0.12110551]
[1746119132978,0.2812565,97121.0,97120.0,0.12210551]
[1746119136981,0.2812565,97121.0,97120.0,0.15850551]
[1746119137594,0.2812565,97121.0,97120.0,0.12210551]
[1746119137795,0.2058671,97116.0,97103.0,0.205894]
[1746119137995,0.5666671,97116.0,97110.0,0.0365]
[1746119138292,0.2058777,97111.0,97110.0,0.0365]
[1746119139094,0.2435777,97111.0,97110.0,0.0365]
[1746119139292,0.2435777,97111.0,97100.0,0.12064987]
[1746119139293,0.2058989,97101.0,97100.0,0.12064987]
[1746119139590,0.257144,97101.0,97100.0,0.15994987]
[1746119140590,0.257144,97101.0,97100.0,0.20244987]
[1746119141185,0.258144,97101.0,97100.0,0.25230251]
[1746119144793,0.258144,97101.0,97100.0,0.24444987]
[1746119144999,0.2059159,97093.0,97092.0,0.00943222]
[1746119145296,0.5667159,97093.0,97092.0,0.00154492]
[1746119145886,0.2853159,97093.0,97092.0,0.00154492]
[1746119146192,0.2853159,97093.0,97092.0,0.00554492]
[1746119146794,0.2853159,97093.0,97092.0,0.00454492]
[1746119147190,0.2853159,97093.0,97092.0,0.00754492]
[1746119148100,0.2853159,97093.0,97092.0,0.00454492]
[1746119148298,0.2853159,97093.0,97092.0,0.00754492]
[1746119150091,0.2853159,97093.0,97092.0,0.04434492]
[1746119150292,0.2853159,97093.0,97092.0,0.08164492]
[1746119154198,0.2457159,97093.0,97092.0,0.08164492]
[1746119157699,0.2457159,97093.0,97092.0,0.07864492]
[1746119158004,0.2457159,97093.0,97092.0,0.07664492]
[1746119160192,0.2457159,97093.0,97092.0,0.07564492]
[1746119163195,0.2457159,97093.0,97092.0,0.07664492]
[1746119163604,0.2457159,97093.0,97092.0,0.00254492]
[1746119163795,0.2457159,97093.0,97092.0,0.00154492]
[1746119171199,0.2457159,97093.0,97092.0,0.03854492]
[1746119171402,0.0514753,97100.0,97097.0,0.2059032]
[1746119171606,0.0514769,97099.0,97098.0,0.3608]
[1746119171807,0.2573801,97099.0,97098.0,0.5667032]
[1746119172108,0.2059032,97099.0,97098.0,0.5667032]
[1746119174002,0.2059032,97099.0,97098.0,0.5687032]
[1746119174500,0.2059032,97099.0,97098.0,0.5697032]
[1746119174704,0.2059032,97099.0,97098.0,0.5707032]
[1746119176304,0.2059032,97099.0,97098.0,0.5697032]
[1746119176711,0.2059032,97099.0,97098.0,0.5687032]
[1746119177114,0.2059032,97099.0,97098.0,0.5707032]
[1746119177412,0.2059032,97099.0,97098.0,0.5697032]
[1746119177617,0.2446032,97099.0,97098.0,0.5697032]
[1746119178016,0.2446032,97099.0,97098.0,0.5717032]
[1746119178511,0.2059032,97099.0,97098.0,0.5707032]
[1746119179213,0.2454032,97099.0,97098.0,0.5707032]
[1746119179611,0.2454032,97099.0,97098.0,0.5697032]
[1746119179912,0.2454032,97099.0,97098.0,0.5687032]
[1746119180121,0.2454032,97099.0,97098.0,0.5697032]
[1746119180318,0.2454032,97099.0,97098.0,0.5677032]
[1746119180510,0.2454032,97099.0,97098.0,0.5697032]
[1746119181018,0.2454032,97099.0,97098.0,0.5687032]
[1746119181218,0.2454032,97099.0,97098.0,0.5697032]
[1746119182507,0.2454032,97099.0,97098.0,0.40798136]
[1746119182911,0.2844032,97099.0,97098.0,0.40798136]
[1746119183622,0.2844032,97099.0,97098.0,0.40698136]
[1746119183826,0.2844032,97099.0,97098.0,0.44088136]
[1746119184026,0.2844032,97099.0,97098.0,0.44188136]
[1746119185022,0.2844032,97099.0,97098.0,0.44288136]
[1746119185426,0.2454032,97099.0,97098.0,0.44288136]
[1746119186325,0.2454032,97099.0,97098.0,0.44088136]
[1746119186516,0.2454032,97099.0,97098.0,0.44188136]
[1746119186717,0.2454032,97099.0,97098.0,0.44288136]
[1746119187224,0.2454032,97099.0,97098.0,0.44388136]
[1746119189317,0.2454032,97099.0,97098.0,0.48128136]
[1746119189518,0.0395,97099.0,97098.0,0.3269463]
[1746119189718,0.0395,97099.0,97098.0,0.3259463]
[1746119189919,0.2571457,97101.0,97100.0,0.2059011]
[1746119190120,0.2059006,97101.0,97100.0,0.2059011]
[1746119190623,0.2059006,97101.0,97100.0,0.2440011]
[1746119191029,0.2059006,97101.0,97100.0,0.2460011]
[1746119191617,0.2059006,97101.0,97100.0,0.2470011]
[1746119191821,0.24991893,97101.0,97100.0,0.2470011]
[1746119192432,0.28971893,97101.0,97100.0,0.003]
[1746119193631,0.2059095,97096.0,97095.0,0.2059116]
[1746119194423,0.2802095,97096.0,97095.0,0.2059116]
[1746119195026,0.2059159,97094.0,97093.0,0.2059155]
[1746119195429,0.2802159,97094.0,97093.0,0.2059155]
[1746119196732,0.2802159,97094.0,97093.0,0.2069155]
[1746119197125,0.2802159,97094.0,97093.0,0.2448155]
[1746119197534,0.0368,97094.0,97093.0,0.2448155]
[1746119197736,0.0368,97094.0,97093.0,0.3448155]
[1746119198326,0.2427138,97094.0,97093.0,0.3448155]
[1746119199127,0.0368,97094.0,97093.0,0.3448155]
[1746119200237,0.2427138,97094.0,97093.0,0.3448155]
[1746119206945,0.0368,97094.0,97093.0,0.3448155]
[1746119208443,0.02393906,97094.0,97093.0,0.3448155]
[1746119209334,0.22985286,97094.0,97093.0,0.3448155]
[1746119212643,0.02393906,97094.0,97093.0,0.3448155]
[1746119225151,0.22985286,97094.0,97093.0,0.3448155]
[1746119225346,0.26715286,97094.0,97093.0,0.103]
[1746119225651,0.26715286,97094.0,97093.0,0.3089159]
[1746119226251,0.26715286,97094.0,97093.0,0.2089159]
[1746119226453,0.06123906,97094.0,97093.0,0.2089159]
[1746119226655,0.26715286,97094.0,97093.0,0.2089159]
[1746119227051,0.26715286,97094.0,97093.0,0.2069159]
[1746119227362,0.26715286,97094.0,97093.0,0.2089159]
[1746119227656,0.26715286,97094.0,97093.0,0.2079159]
[1746119227850,0.26715286,97094.0,97093.0,0.2069159]
[1746119228050,0.26715286,97094.0,97093.0,0.2089159]
[1746119228654,0.26715286,97094.0,97093.0,0.2099159]
[1746119228851,0.26715286,97094.0,97093.0,0.2109159]
[1746119229354,0.26715286,97094.0,97093.0,0.2089159]
[1746119229656,0.26715286,97094.0,97093.0,0.2099159]
[1746119230159,0.26715286,97094.0,97093.0,0.2069159]
[1746119230352,0.26715286,97094.0,97093.0,0.2089159]
[1746119230958,0.26715286,97094.0,97093.0,0.2109159]
[1746119231257,0.26715286,97094.0,97093.0,0.3109159]
[1746119233447,0.06123906,97094.0,97093.0,0.3109159]
[1746119236056,0.06123906,97094.0,97093.0,0.3481159]
[1746119236361,0.04837845,97094.0,97093.0,0.3481159]
[1746119237257,0.25429225,97094.0,97093.0,0.3109159]
[1746119237961,0.04837845,97094.0,97093.0,0.3109159]
[1746119238156,0.25429225,97094.0,97093.0,0.3109159]
[1746119238357,0.25429225,97094.0,97093.0,0.3079159]
[1746119238561,0.04837845,97094.0,97093.0,0.3109159]
[1746119239054,0.25429225,97094.0,97093.0,0.3109159]
[1746119241863,0.25429225,97094.0,97093.0,0.3089159]
[1746119242064,0.25429225,97094.0,97093.0,0.3109159]
[1746119242365,0.25429225,97094.0,97093.0,0.3079159]
[1746119242572,0.25429225,97094.0,97093.0,0.3109159]
[1746119242770,0.04837845,97094.0,97093.0,0.3109159]
[1746119243269,0.25429225,97094.0,97093.0,0.3109159]
[1746119246064,0.04837845,97094.0,97093.0,0.3109159]
[1746119246269,0.25429225,97094.0,97093.0,0.3109159]
[1746119246465,0.04837845,97094.0,97093.0,0.3109159]
[1746119246669,0.01107845,97094.0,97093.0,0.3109159]
[1746119246863,0.01107845,97094.0,97093.0,0.3480159]
[1746119247063,0.01107845,97094.0,97093.0,0.3450159]
[1746119247263,0.01107845,97094.0,97093.0,0.3480159]
[1746119252070,0.21699225,97094.0,97093.0,0.3109159]
[1746119252571,0.01107845,97094.0,97093.0,0.3109159]
[1746119254469,0.01107845,97094.0,97093.0,0.3488159]
[1746119261176,0.01107845,97094.0,97093.0,0.3458159]
[1746119261374,0.01207845,97094.0,97093.0,0.3498159]
[1746119261567,0.01207845,97094.0,97093.0,0.3508159]
[1746119261969,0.0359189,97109.0,97093.0,0.958692]
[1746119262268,0.2058436,97130.0,97129.0,0.2058353]
[1746119262471,0.1273583,97133.0,97132.0,0.2058332]
[1746119262472,0.0759,97133.0,97132.0,0.2058332]
[1746119263172,0.038,97133.0,97132.0,0.5666332]
[1746119263376,0.038,97133.0,97132.0,0.6059332]
[1746119263377,0.07528124,97133.0,97132.0,0.6059332]
[1746119263567,0.28111234,97133.0,97132.0,0.6059332]
[1746119263767,0.28511234,97133.0,97132.0,0.4001]
[1746119264271,0.28511234,97133.0,97132.0,0.6059332]
[1746119264778,0.29011234,97133.0,97132.0,0.5666332]
[1746119277679,0.29011234,97133.0,97132.0,0.2058332]
[1746119277881,0.2058481,97125.0,97124.0,0.3608]
[1746119278474,0.2058481,97125.0,97124.0,0.5666502]
[1746119278675,0.2854481,97125.0,97124.0,0.5666502]
[1746119279183,0.2874481,97125.0,97124.0,0.5666502]
[1746119279682,0.2894481,97125.0,97124.0,0.5666502]
[1746119280284,0.2894481,97125.0,97124.0,0.3608]
[1746119281387,0.2058693,97116.0,97115.0,0.2058678]
[1746119281571,0.2058693,97116.0,97114.0,0.3608]
[1746119281772,0.3200693,97115.0,97114.0,0.3608]
[1746119282077,0.3200693,97115.0,97114.0,0.5666714]
[1746119282579,0.3200693,97115.0,97114.0,0.3608]
[1746119283386,0.3210693,97115.0,97114.0,0.3608]
[1746119286083,0.3210693,97115.0,97114.0,0.5666714]
[1746119291189,0.2831693,97115.0,97114.0,0.5666714]
[1746119291387,0.2456693,97115.0,97114.0,0.5666714]
[1746119291587,0.2456693,97115.0,97114.0,0.6049714]
[1746119291981,0.001,97115.0,97114.0,0.6049714]
[1746119292185,0.001,97115.0,97114.0,0.7049714]
[1746119292995,0.2068693,97115.0,97114.0,0.7049714]
[1746119293295,0.001,97115.0,97114.0,0.7049714]
[1746119299593,0.2573038,97129.0,97128.0,0.2058417]
[1746119299793,0.2058439,97129.0,97128.0,0.2058417]
[1746119300196,0.2058439,97129.0,97128.0,0.2877417]
[1746119300795,0.2088439,97129.0,97128.0,0.2877417]
[1746119301001,0.2088439,97129.0,97128.0,0.2469417]
[1746119302005,0.2118439,97129.0,97128.0,0.2469417]